[Event "Ramat Gan Masters-A Winter 2023"]
[Site "Ramat Gan/ISR"]
[Date "2023.03.20"]
[Round "7.5"]
[White "Malachi, Avraham"]
[Black "Duchan, Yoav"]
[Result "1/2-1/2"]
[Annotator "TA"]
[ECO "B77"]
[WhiteElo "1975"]
[BlackElo "1945"]
[PlyCount "108"]
[EventDate "2023.01.17"]
[EventType "swiss"]
[SourceTitle "playchess.com"]
[Source "ChessBase"]
[SourceQuality "1"]
[TimeControl "5400+30"]

{[%evp 21,108,25,29,40,74,77,125,120,130,76,85,12,223,223,233,231,229,66,61,64,52,63,62,-29,0,-14,-6,-10,-7,-96,-97,-92,-89,-92,-79,-100,-26,-33,-40,-61,-10,-6,-22,-18,0,-113,0,0,0,-114,-118,-112,0,0,0,0,0,0,0,0,2,13,31,0,0,0,0,0,0,0,0,0,0,0,0,0,0,0,0,0,0,0,0,0,0,0,0,0,0]} 1. e4 {[%emt 0:00:03]} c5 {[%emt 0:00:09]} 2. Nf3 {[%emt 0:00:06]} Nc6 {[%emt 0:00:06]} 3. d4 {[%emt 0:00:05]} cxd4 {[%emt 0:00:04]} 4. Nxd4 {[%emt 0:00:08]} Nf6 {[%emt 0:00:23]} 5. Nc3 {[%emt 0:00:12]} g6 {[%emt 0:00:18]} 6. Be3 {[%emt 0:00:23]} Bg7 {[%emt 0:00:06]} 7. Bc4 {[%emt 0:00:15]} O-O {[%emt 0:00:06]} 8. Bb3 {[%emt 0:00:20]} d6 {[%emt 0:00:06]} 9. f3 {[%emt 0:00:10]} Bd7 {[%emt 0:00:04]} 10. Qd2 {[%emt 0:00:14]} Nxd4 {[%emt 0:00:11]} 11. Bxd4 {[%emt 0:00:16]} b5 $1 {[%emt 0:00:08]} 12. h4 {[%emt 0:03:10][%cal Oh4h5] B77: Sicilian Dragon: Yugoslav Attack, 9 Bc4 sidelines.} h5 {[%emt 0:10:23] [#]} 13. g4 $1 {[%emt 0:47:05]} e5 {[%emt 0:02:46]} (13... a5 $142) (13... e6 14. g5) 14. Be3 $16 {[%emt 0:00:17] White is better.} hxg4 {[%emt 0:03:07]} 15. h5 {[%emt 0:45:16]} ({White should play} 15. O-O-O $1) 15... Nxh5 {[%emt 0:08:19] [#]} (15... gxh5 $2 16. Bh6 Nh7 17. Rxh5 $18 (17. Bxg7 Kxg7 18. Rxh5 Qf6 $16)) (15... gxf3 $2 16. h6 f2+ 17. Bxf2 $18 (17. Kxf2 Ng4+ 18. Kf3 Bf6 $17)) 16. Nd5 $146 {[%emt 0:00:00] White has more active pieces. The black rooks are badly placed.} (16. Qxd6 $6 Be6 17. Qxd8 Raxd8 $11) (16. O-O-O $1 $16) ({Predecessor:} 16. O-O-O Kh7 17. Qxd6 gxf3 18. Qxd7 Qxd7 19. Rxd7 f5 20. Bd5 f4 21. Bf2 Rad8 22. Rxa7 Kh6 23. Be6 Bf6 24. Nd5 Rd6 25. Bc5 {1-0 Anton Veiga,J (2096)-Quispe Arteaga,G (2294) Madrid-ch 2017 (5)}) 16... Nf4 {[%emt 0:16:19]} (16... gxf3 $2 17. Bg5 f2+ 18. Kf1 $18) (16... Bf6 $1 $11 {and Black is okay.}) 17. Nxf4 $18 {[%emt 0:00:00]} exf4 {[%emt 0:03:09] [#]} 18. Qh2 $1 {[%emt 0:00:00][%csl Gh1][%cal Rh2h7]} Re8 {[%emt 0:00:52] [#]} 19. Bd4 {[%emt 0:00:00][%mdl 512]} Re5 $14 {[%emt 0:05:05]} 20. Bxe5 {[%emt 0:00:00]} dxe5 {[%emt 0:02:12]} 21. O-O-O $1 {[%emt 0:00:00]} (21. Bd5 Rc8 $15) 21... Qe7 {[%emt 0:00:42] Repels Rd6} (21... g3 $2 22. Qd2 $18) 22. Qd2 {[%emt 0:00:00]} (22. Qh4 $1 $14 Re8 23. fxg4) 22... Be6 {[%emt 0:02:24][%cal Bd7e6,Be6g4,Bg4f3][%mdl 32]} 23. fxg4 {[%emt 0:00:00]} Bxg4 {[%emt 0:05:40]} 24. Qd5 {[%emt 0:00:00][%csl LRa8,LRb5]} Rb8 {[%emt 0:01:07]} 25. Qd6 {[%emt 0:00:00]} (25. Rdg1 $11 Bh5 26. Qc6) 25... Qxd6 $17 {[%emt 0:02:19]} 26. Rxd6 {[%emt 0:00:00]} Bf3 {[%emt 0:01:09][%csl LRe4,LRh1]} 27. Re1 {[%emt 0:00:00]} g5 {[%emt 0:01:17]} 28. c3 {[%emt 0:00:00]} Rb7 {[%emt 0:04:23]} (28... b4 $17 29. Rd7 bxc3 30. Bxf7+ Kh7 31. bxc3 g4) 29. Bd1 {[%emt 0:00:00]} Bxd1 {[%emt 0:00:05]} 30. Kxd1 $15 {[%emt 0:00:00][%mdl 4096] Endgame KRR-KRB} f6 {[%emt 0:00:54]} (30... g4 $15) 31. Ke2 $11 {[%emt 0:00:00]} Kf7 {[%emt 0:00:39]} 32. Kf3 {[%emt 0:00:00]} Kg6 {[%emt 0:00:15]} 33. Red1 {[%emt 0:00:00]} (33. a3 $11 {keeps the balance.}) 33... Kh5 {[%emt 0:02:44]} 34. Rh1+ {[%emt 0:00:00]} Kg6 {[%emt 0:00:11]} 35. Rhd1 {[%emt 0:00:09] [#]} Rb8 $1 {[%emt 0:01:30]} 36. Rh1 {[%emt 0:00:42] [#]} Bf8 {[%emt 0:02:22]} (36... b4 $1 $17 {[%cal Rb4c3] Hoping for ...bxc3.} 37. cxb4 Rxb4) 37. Rd7 {[%emt 0:10:09][%cal Oh1h8]} f5 {[%emt 0:01:59]} 38. exf5+ {[%emt 0:00:00]} (38. Rxa7 $2 g4+ 39. Ke2 fxe4 $19) 38... Kxf5 {[%emt 0:00:17] White must now prevent ...g4+.} 39. Rf7+ {[%emt 0:00:00]} (39. Rxa7 e4+ 40. Ke2 f3+ 41. Kd1 Rd8+ 42. Kc2 e3 $19) 39... Kg6 {[%emt 0:00:17]} 40. Rxa7 {[%emt 0:00:00] Strongly threatening Kg4.} Rd8 {[%emt 0:00:31]} 41. Ke4 {[%emt 0:00:00] Against Rd3. aiming for Ra6+.} Bg7 $1 {[%emt 0:01:21]} 42. Rg1 {[%emt 0:00:00][%cal Oa7g7] Rxg7+! is the strong threat.} Rd2 {[%emt 0:01:37] The position is equal.} 43. Rxg7+ $1 {[%emt 0:00:00][%mdl 64] Deflection} Kxg7 {[%emt 0:01:30]} 44. Rxg5+ {[%emt 0:00:00] KR-KR} (44. Kxe5 $2 {is the wrong capture.} Kg6 45. b4 Rxa2 $19) 44... Kf6 {[%emt 0:00:48]} 45. Rf5+ {[%emt 0:00:00][%mdl 64] Deflection} (45. Rxe5 $2 Re2+ 46. Kxf4 Rxe5 $19) 45... Kg6 {[%emt 0:00:18] And now ...Re2+ would win.} 46. Rxe5 {[%emt 0:00:00] Threatens to win with b4.} (46. Kxe5 $2 {perishes.} Rd5+ 47. Kxf4 (47. Kxd5 $2 {too greedy.} Kxf5 48. Kd4 Kg4 $19) 47... Rxf5+ $19) 46... Rxb2 {[%emt 0:00:23]} 47. Kxf4 {[%emt 0:00:00]} b4 {[%emt 0:01:45]} 48. cxb4 {[%emt 0:00:00]} Rxb4+ {[%emt 0:00:04]} 49. Re4 {[%emt 0:00:00]} Rb2 {[%emt 0:01:33]} 50. a4 {[%emt 0:00:00]} Kf6 {[%emt 0:00:14]} 51. Rd4 {[%emt 0:00:00]} Ke6 {[%emt 0:00:17]} 52. Ke4 {[%emt 0:00:00]} Rb3 {[%emt 0:00:28]} 53. Rc4 {[%emt 0:00:19]} Kd6 {[%emt 0:00:52]} 54. Kd4 {[%emt 0:00:17]} Rh3 {[%emt 0:00:16] Weighted Error Value: White=0.19 (very precise) /Black=0.20 (precise)} 1/2-1/2

[Event "Ramat Gan Masters-A Winter 2023"]
[Site "Ramat Gan/ISR"]
[Date "2023.03.20"]
[Round "7.6"]
[White "Gurevich, Neria"]
[Black "Lapushnian, Maya"]
[Result "1-0"]
[Annotator "NA RC COMBH"]
[ECO "D35"]
[WhiteElo "1543"]
[BlackElo "1707"]
[PlyCount "73"]
[EventDate "2023.01.17"]
[EventType "swiss"]
[SourceTitle "playchess.com"]
[Source "ChessBase"]
[SourceQuality "1"]
[TimeControl "5400+30"]

1. d4 {[%emt 0:00:02]} d5 {[%emt 0:00:07]} 2. c4 {[%emt 0:00:04]} e6 {[%emt 0:00:05]} 3. Nf3 {[%emt 0:00:14]} Nf6 {[%emt 0:00:07]} 4. Nc3 {[%emt 0:00:23]} h6 {[%emt 0:00:06]} 5. cxd5 {[%emt 0:01:20]} exd5 {[%emt 0:02:14]} 6. Bf4 {[%emt 0:00:55]} Bd6 {[%emt 0:00:08]} 7. Bxd6 {[%emt 0:00:49]} Qxd6 {[%emt 0:00:08]} 8. e3 {[%emt 0:00:59]} O-O {[%emt 0:00:09]} 9. Bd3 {[%emt 0:00:32]} Nc6 {[%emt 0:00:41]} 10. O-O {[%emt 0:01:13]} a6 {[%emt 0:00:21]} 11. a3 {[%emt 0:01:35]} Bg4 {[%emt 0:04:01]} 12. h3 {[%emt 0:03:38]} Bxf3 {[%emt 0:02:41]} 13. Qxf3 {[%emt 0:00:12]} Rfe8 {[%emt 0:00:15]} 14. Rfe1 {[%emt 0:02:06]} Rab8 {[%emt 0:23:41]} 15. Rad1 {[%emt 0:02:44]} Nd8 {[%emt 0:21:02]} 16. e4 {[%emt 0:03:58]} dxe4 {[%emt 0:07:43]} 17. Nxe4 {[%emt 0:00:33]} Nxe4 {[%emt 0:00:13]} 18. Bxe4 {[%emt 0:03:01]} Ne6 {[%emt 0:10:19]} 19. Qd3 {[%emt 0:29:49]} Nf4 {[%emt 0:07:55]} 20. Qc4 {[%emt 0:02:11]} c6 {[%emt 0:08:14]} 21. Qc3 {[%emt 0:12:30]} Rbd8 {[%emt 0:02:25]} 22. Qf3 {[%emt 0:01:56]} g6 {[%emt 0:01:29]} 23. Re3 {[%emt 0:03:07]} c5 {[%emt 0:02:10]} 24. Bxb7 {[%emt 0:01:06]} cxd4 {[%emt 0:00:20]} 25. Rxe8+ {[%emt 0:00:07]} Rxe8 {[%emt 0:00:02]} 26. Bxa6 {[%emt 0:00:24]} d3 {[%emt 0:00:59]} 27. Bb5 {[%emt 0:02:10]} Re7 {[%emt 0:04:09]} 28. Qc6 {[%emt 0:06:37]} Ne2+ {[%emt 0:02:07]} 29. Kh1 {[%emt 0:00:24]} Qf4 {[%emt 0:00:36]} 30. Qf3 {[%emt 0:02:17]} Qc7 {[%emt 0:00:30]} 31. Bxd3 {[%emt 0:00:44]} Nd4 {[%emt 0:00:09]} 32. Qg3 {[%emt 0:00:22]} Qb6 {[%emt 0:00:22]} 33. b4 {[%emt 0:00:39]} Kf8 {[%emt 0:00:59]} 34. Bf1 {[%emt 0:00:47]} Nf5 {[%emt 0:00:11]} 35. Qc3 {[%emt 0:00:09]} f6 {[%emt 0:00:50]} 36. Qc8+ {[%emt 0:00:32]} Kf7 {[%emt 0:00:09]} 37. Bc4+ {[%emt 0:00:12]} 1-0

[Event "Ramat Gan Masters-A Winter 2023"]
[Site "Ramat Gan/ISR"]
[Date "2023.03.20"]
[Round "7.7"]
[White "Kochavi, Dana"]
[Black "Meirovich, Ilay"]
[Result "0-1"]
[Annotator "TA"]
[ECO "B40"]
[WhiteElo "1956"]
[BlackElo "1979"]
[PlyCount "86"]
[EventDate "2023.01.17"]
[EventType "swiss"]
[SourceTitle "playchess.com"]
[Source "ChessBase"]
[SourceQuality "1"]
[TimeControl "5400+30"]

{[%evp 9,86,17,9,0,10,0,3,-8,0,-6,-7,-27,-22,-24,0,0,0,0,23,-43,-40,-66,-22,-67,-48,-56,-17,-33,-13,-5,16,4,77,-9,84,77,89,70,54,63,67,85,60,36,87,-64,-47,-145,0,0,0,0,0,-29,0,-58,0,-22,-22,-200,-197,-185,-194,-212,-182,-254,-237,-1157,-912,-29978,-29979,-29990,-29991,-29993,-29992,-29996,-29997,-29997,-29998]} 1. e4 {[%emt 0:00:01]} c5 {[%emt 0:00:29]} 2. Nf3 {[%emt 0:00:05]} e6 {[%emt 0:00:07]} 3. b3 {[%emt 0:00:08]} a6 {[%emt 0:00:06]} 4. Bb2 {[%emt 0:00:08]} Nc6 {[%emt 0:00:19]} 5. c4 {[%emt 0:01:13]} Qc7 {[%emt 0:00:10]} 6. Be2 {[%emt 0:04:01] B40: Sicilian: 2...e6, Unusual lines.} Nf6 {[%emt 0:04:31]} 7. d3 {[%emt 0:00:46] [#]} b5 $146 {[%emt 0:00:20]} ({Predecessor:} 7... Bd6 8. O-O b6 9. Re1 Bb7 10. Bf1 Ng4 11. g3 O-O 12. Ng5 Be5 13. d4 Nxd4 14. Qxg4 {1-0 Kalvaitis,S (2258)-Laurusas,T (2360) LTU-ch Vilnius 2012 (9)}) 8. Nbd2 {[%emt 0:01:39] The position is equal.} Bb7 {[%emt 0:07:50]} 9. O-O {[%emt 0:08:01]} Be7 {[%emt 0:05:18]} 10. cxb5 {[%emt 0:21:32]} axb5 {[%emt 0:00:03]} 11. d4 {[%emt 0:00:28]} Nxd4 {[%emt 0:07:56]} 12. Nxd4 {[%emt 0:00:43]} cxd4 {[%emt 0:00:02]} 13. Bxb5 {[%emt 0:01:05]} e5 {[%emt 0:00:14]} (13... Bxe4 14. Nxe4 (14. Bxd4 Bc2 $11) 14... Nxe4 15. Qxd4 $16 (15. Bxd4 O-O $14)) 14. Bd3 {[%emt 0:14:09]} (14. Rc1 $11 Qb8 15. a4) 14... O-O $15 {[%emt 0:00:42]} 15. f4 {[%emt 0:02:51]} d6 {[%emt 0:12:50] Black is more active.} (15... exf4 $5 {[%cal Re7b4]} 16. Rc1 Qb6 $15) 16. h3 {[%emt 0:02:03]} Nd7 {[%emt 0:00:47]} (16... g6 $5 {[%cal Rf6h5]}) 17. b4 {[%emt 0:08:49] Prevents Nc5.} d5 {[%emt 0:07:32]} (17... exf4 $5 {[%cal Rd7e5]} 18. Rc1 Qb8 $15) 18. a3 {[%emt 0:02:01]} h6 {[%emt 0:03:35]} 19. Qe2 {[%emt 0:02:32]} Bf6 {[%emt 0:03:52]} 20. exd5 {[%emt 0:04:08]} exf4 {[%emt 0:00:46]} (20... Bxd5 $11 21. Ne4 Be7) 21. Ne4 {[%emt 0:01:07]} (21. Qe4 $16 {[%csl Gd3][%cal Re4h7]} g6 22. Bxd4 (22. Rxf4 Bxd5 23. Qxd5 Qxf4 $17)) 21... Be5 {[%emt 0:00:11]} (21... Bxd5 $11 22. Nxf6+ {[%mdl 64] Remove Defender} Nxf6) 22. Rac1 $16 {[%emt 0:01:44]} Qb8 {[%emt 0:01:55]} 23. Nc5 {[%emt 0:02:18]} Nxc5 {[%emt 0:00:41]} 24. Rxc5 {[%emt 0:00:47]} Qd6 {[%emt 0:00:22] Black is weak on the light squares} 25. Qe4 $1 {[%emt 0:05:52][%csl Gd3][%cal Re4h7]} f5 {[%emt 0:01:01]} 26. Qe2 {[%emt 0:00:05]} Kh8 {[%emt 0:00:40]} (26... Bxd5 $2 27. Rxd5 Qxd5 28. Bc4 $18) (26... Rae8 $14) 27. Rfc1 $2 {[%emt 0:01:10]} (27. Bc4 $16) 27... Rae8 $1 $15 {[%emt 0:00:59]} (27... Bxd5 $2 28. Rxd5 Qxd5 29. Rc5 $18) 28. Qf2 {[%emt 0:04:30]} (28. Bb5 $15 d3 29. Bxe5 (29. Qxd3 $2 {is the wrong capture.} Bxb2 30. Rf1 Re3 $19) (29. Bxd3 f3 $17) 29... Qxc5+ 30. bxc5 dxe2 31. Bxe8 Rxe8 32. Bc3 Bxd5 33. Kf2) 28... Bxd5 {[%emt 0:05:57]} (28... f3 $1 $17 {[%cal Rf3g2] ...fxg2 is the strong threat.} 29. Qxf3 (29. Bxd4 $2 fxg2 30. Bxe5 Rxe5 $17) 29... Bh2+ 30. Kh1 Re3) 29. Bxd4 $11 {[%emt 0:00:17]} Be4 $36 {[%emt 0:00:21][%mdl 2048] Black has some pressure.} 30. Bxe5 {[%emt 0:00:03]} Rxe5 {[%emt 0:00:11]} 31. Bf1 {[%emt 0:02:55]} ({Much worse is} 31. Qxf4 Qd4+ 32. Qf2 Qxf2+ 33. Kxf2 Rxc5 34. Rxc5 Bxd3 $17) 31... Re6 {[%emt 0:00:57]} 32. Rc8 {[%emt 0:01:40]} (32. Ra5 $11) 32... Ree8 {[%emt 0:04:00]} ({Black should play} 32... Rxc8 $15 33. Rxc8+ Kh7) 33. Rxe8 {[%emt 0:02:02]} Rxe8 {[%emt 0:00:02]} 34. Qc5 $2 {[%emt 0:00:58] [#] This move loses the game for White.} (34. b5 $11 {and White is okay.}) 34... Qg6 $1 $19 {[%emt 0:00:18]} 35. Qf2 {[%emt 0:02:00] [#]} f3 {[%emt 0:03:57]} 36. g3 {[%emt 0:00:03]} ({Don't go for} 36. Bb5 $2 Rd8 37. Bf1 Qg5 $19) 36... Qg5 {[%emt 0:01:39]} 37. Rc5 {[%emt 0:00:53]} (37. Rc3 $142) 37... Rd8 {[%emt 0:00:15] Hoping for ...Kh7.} 38. h4 $2 {[%emt 0:00:15]} (38. Rc3) 38... Qg4 {[%emt 0:01:47] ( -> ...f4)} 39. Rc4 {[%emt 0:01:44]} Rd1 {[%emt 0:01:18] Black mates.} 40. Kh2 {[%emt 0:02:54] [#]} f4 $1 {[%emt 0:01:08]} 41. gxf4 {[%emt 0:00:04]} (41. Rxe4 fxg3+) 41... Qxf4+ {[%emt 0:04:14]} 42. Kh1 {[%emt 0:01:13] [#]} Rxf1+ $1 {[%emt 0:00:16][%mdl 576] Deflection, Back Rank} 43. Qxf1 {[%emt 0:00:05]} Qxh4+ {[%emt 0:00:04] Excellently played by Meirovich!   Weighted Error Value: White=0.55/Black=0.21 (precise)} 0-1

[Event "Ramat Gan Masters-A Winter 2023"]
[Site "Ramat Gan/ISR"]
[Date "2023.03.20"]
[Round "7.8"]
[White "Neumann, Amit"]
[Black "Weber, Yonatan"]
[Result "1-0"]
[Annotator "NA RC COMBH"]
[ECO "B22"]
[WhiteElo "1615"]
[BlackElo "1527"]
[PlyCount "85"]
[EventDate "2023.01.17"]
[EventType "swiss"]
[SourceTitle "playchess.com"]
[Source "ChessBase"]
[SourceQuality "1"]
[TimeControl "5400+30"]

1. e4 {[%emt 0:00:31]} c5 {[%emt 0:00:08]} 2. Nf3 {[%emt 0:00:04]} Nc6 {[%emt 0:00:06]} 3. c3 {[%emt 0:00:39]} Nf6 {[%emt 0:00:19]} 4. e5 {[%emt 0:00:16]} Nd5 {[%emt 0:00:05]} 5. d4 {[%emt 0:00:25]} cxd4 {[%emt 0:00:06]} 6. Bc4 {[%emt 0:00:46]} Nb6 {[%emt 0:00:20]} 7. Bb3 {[%emt 0:00:12]} g6 {[%emt 0:00:33]} 8. O-O {[%emt 0:00:57]} Bg7 {[%emt 0:00:42]} 9. cxd4 {[%emt 0:00:13]} O-O {[%emt 0:00:07]} 10. Bf4 {[%emt 0:01:10]} d6 {[%emt 0:00:21]} 11. exd6 {[%emt 0:01:19]} Bg4 {[%emt 0:05:16]} 12. Re1 {[%emt 0:09:04]} exd6 {[%emt 0:05:23]} 13. h3 {[%emt 0:04:01]} Bxf3 {[%emt 0:00:13]} 14. Qxf3 {[%emt 0:00:09]} Bxd4 {[%emt 0:17:48]} 15. Nc3 {[%emt 0:02:22]} Bg7 {[%emt 0:00:10]} 16. Rad1 {[%emt 0:00:26]} Re8 {[%emt 0:23:04]} 17. Bxf7+ {[%emt 0:06:00]} Kxf7 {[%emt 0:00:18]} 18. Bg5+ {[%emt 0:00:05]} Bf6 {[%emt 0:01:42]} 19. Rxe8 {[%emt 1:11:21]} Qxe8 {[%emt 0:01:26]} 20. Qxf6+ {[%emt 0:00:00]} Kg8 {[%emt 0:00:03]} 21. Qxd6 {[%emt 0:00:00]} h6 {[%emt 0:00:44]} 22. Bf6 {[%emt 0:00:00]} Qf7 {[%emt 0:00:36]} 23. Ne4 {[%emt 0:00:00]} Re8 {[%emt 0:02:19]} 24. f3 {[%emt 0:00:00]} Re6 {[%emt 0:01:51]} 25. Qf4 {[%emt 0:00:00]} Kh7 {[%emt 0:02:26]} 26. Qh4 {[%emt 0:00:00]} Kg8 {[%emt 0:01:13]} 27. Bc3 {[%emt 0:00:00]} Qf8 {[%emt 0:04:29]} 28. Nf6+ {[%emt 0:00:00]} Kf7 {[%emt 0:00:27]} 29. Qf4 {[%emt 0:00:00]} g5 {[%emt 0:00:21]} 30. Qf5 {[%emt 0:00:00]} Ne7 {[%emt 0:02:44]} 31. Qg4 {[%emt 0:00:00]} Rxf6 {[%emt 0:01:46]} 32. Bxf6 {[%emt 0:00:00]} Kxf6 {[%emt 0:00:23]} 33. Rd6+ {[%emt 0:00:00]} Kg7 {[%emt 0:00:06]} 34. Qd4+ {[%emt 0:00:00]} Kh7 {[%emt 0:00:36]} 35. Rd8 {[%emt 0:00:00]} Qg7 {[%emt 0:03:09]} 36. Qe4+ {[%emt 0:00:00]} Ng6 {[%emt 0:00:36]} 37. Rb8 {[%emt 0:00:00]} Qf6 {[%emt 0:01:11]} 38. Qxb7+ {[%emt 0:00:00]} Ne7 {[%emt 0:00:49]} 39. Qe4+ {[%emt 0:00:00]} Ng6 {[%emt 0:00:16]} 40. Rb7+ {[%emt 0:00:00]} Kg8 {[%emt 0:00:18]} 41. Rxa7 {[%emt 0:00:00]} Qd6 {[%emt 0:01:04]} 42. Qe8+ {[%emt 0:00:00]} Nf8 {[%emt 0:00:08]} 43. Qe4 {[%emt 0:12:00]} 1-0

[Event "Ramat Gan Masters-A Winter 2023"]
[Site "Ramat Gan/ISR"]
[Date "2023.03.20"]
[Round "7.9"]
[White "Sobel, Ido"]
[Black "Shapira, Avner"]
[Result "1-0"]
[Annotator "NA COMBH"]
[ECO "B23"]
[WhiteElo "1871"]
[BlackElo "1814"]
[PlyCount "39"]
[EventDate "2023.01.17"]
[EventType "swiss"]
[SourceTitle "playchess.com"]
[Source "ChessBase"]
[SourceQuality "1"]
[TimeControl "5400+30"]

1. e4 {[%emt 0:00:01]} c5 {[%emt 0:03:47]} 2. Nc3 {[%emt 0:00:02]} Nc6 {[%emt 0:00:38]} 3. f4 {[%emt 0:00:05]} d6 {[%emt 0:00:56]} 4. Nf3 {[%emt 0:00:05]} e6 {[%emt 0:01:17]} 5. Bc4 {[%emt 0:01:12]} Nf6 {[%emt 0:00:48]} 6. Bb3 {[%emt 0:01:25]} Be7 {[%emt 0:09:03]} 7. d3 {[%emt 0:00:08]} O-O {[%emt 0:05:52]} 8. a3 {[%emt 0:00:03]} a6 {[%emt 0:03:46]} 9. O-O {[%emt 0:01:18]} b5 {[%emt 0:00:07]} 10. Qe1 {[%emt 0:02:22]} g6 {[%emt 0:15:37]} 11. f5 {[%emt 0:02:33]} exf5 {[%emt 0:03:42]} 12. Nd5 {[%emt 0:04:09]} (12. exf5 $11 Bxf5 13. Nd5) 12... Be6 {[%emt 0:14:17]} 13. Nxe7+ {[%emt 0:00:07]} Qxe7 {[%emt 0:06:28]} 14. Bg5 {[%emt 0:00:52]} Kg7 $2 {[%emt 0:00:27]} (14... h6 $14 15. Bxh6 Bxb3 16. Bxf8 Rxf8 17. cxb3 fxe4 18. dxe4 Nxe4) 15. Qh4 {[%emt 0:02:29]} h5 {[%emt 0:00:15]} 16. exf5 {[%emt 0:09:29]} gxf5 $18 {[%emt 0:07:30]} 17. Rae1 {[%emt 0:01:32]} Rae8 {[%emt 0:01:01]} 18. Nd2 {[%emt 0:05:47]} Nb8 {[%emt 0:03:23]} 19. Ne4 {[%emt 0:00:20]} Nbd7 {[%emt 0:00:09]} 20. Bxf6+ {[%emt 0:00:19]} 1-0

[Event "Ramat Gan Masters-A Winter 2023"]
[Site "Ramat Gan/ISR"]
[Date "2023.03.20"]
[Round "7.10"]
[White "Soybert, Ori"]
[Black "Goz, Shachar"]
[Result "1-0"]
[Annotator "NA RC COMBH"]
[ECO "B47"]
[WhiteElo "1736"]
[BlackElo "1623"]
[PlyCount "75"]
[EventDate "2023.01.17"]
[EventType "swiss"]
[SourceTitle "playchess.com"]
[Source "ChessBase"]
[SourceQuality "1"]
[TimeControl "5400+30"]

1. e4 {[%emt 0:03:08]} c5 {[%emt 0:00:03]} 2. Nf3 {[%emt 0:00:14]} e6 {[%emt 0:00:03]} 3. d4 {[%emt 0:00:04]} cxd4 {[%emt 0:00:03]} 4. Nxd4 {[%emt 0:00:07]} Nc6 {[%emt 0:00:04]} 5. Nc3 {[%emt 0:00:17]} Qc7 {[%emt 0:00:04]} 6. g3 {[%emt 0:03:23]} a6 {[%emt 0:00:48]} 7. Bg2 {[%emt 0:00:37]} Nf6 {[%emt 0:00:04]} 8. Nxc6 {[%emt 0:00:16]} dxc6 {[%emt 0:00:18]} 9. O-O {[%emt 0:00:12]} Bc5 {[%emt 0:05:39]} 10. Na4 {[%emt 0:22:57]} Ba7 {[%emt 0:05:12]} 11. c4 {[%emt 0:03:29]} e5 {[%emt 0:05:34]} 12. c5 {[%emt 0:02:41]} O-O {[%emt 0:00:06]} 13. h3 {[%emt 0:08:33]} Rd8 {[%emt 0:00:50]} 14. Qc2 {[%emt 0:01:18]} Be6 {[%emt 0:00:33]} 15. Bg5 {[%emt 0:12:57]} Rd4 {[%emt 0:02:35]} 16. b3 {[%emt 0:04:16]} Rad8 {[%emt 0:03:49]} 17. Be3 {[%emt 0:03:50]} R4d7 {[%emt 0:00:19]} 18. Rfd1 {[%emt 0:01:59]} Rxd1+ {[%emt 0:03:54]} 19. Rxd1 {[%emt 0:00:25]} Rxd1+ {[%emt 0:00:04]} 20. Qxd1 {[%emt 0:00:02]} Qd7 {[%emt 0:00:06]} 21. Qxd7 {[%emt 0:04:22]} Nxd7 {[%emt 0:00:02]} 22. Kf1 {[%emt 0:04:41]} Nb8 {[%emt 0:00:03]} 23. Ke2 {[%emt 0:01:15]} a5 {[%emt 0:00:22]} 24. Kd2 {[%emt 0:01:05]} Na6 {[%emt 0:00:20]} 25. Kc3 {[%emt 0:00:29]} Nc7 {[%emt 0:00:32]} 26. f4 {[%emt 0:04:22]} exf4 {[%emt 0:01:08]} 27. Bxf4 {[%emt 0:03:33]} Nb5+ {[%emt 0:00:32]} 28. Kd3 {[%emt 0:00:43]} f5 {[%emt 0:00:43]} 29. h4 {[%emt 0:01:08]} fxe4+ {[%emt 0:02:23]} 30. Bxe4 {[%emt 0:00:21]} Bg4 {[%emt 0:00:21]} 31. Nb6 {[%emt 0:06:12]} Bxb6 {[%emt 0:03:21]} 32. cxb6 {[%emt 0:00:22]} Na3 {[%emt 0:00:19]} 33. Bxc6 {[%emt 0:01:31]} Bf5+ {[%emt 0:01:58]} 34. Kc3 {[%emt 0:01:10]} Bc8 {[%emt 0:00:06]} 35. Ba4 {[%emt 0:00:40]} Bf5 {[%emt 0:00:47]} 36. Bc1 {[%emt 0:00:42]} Nb1+ {[%emt 0:01:21]} 37. Kd4 {[%emt 0:00:35]} Kf7 {[%emt 0:00:42]} 38. Bc6 {[%emt 0:05:34]} 1-0